[Event "22nd Indian Women chT 2025"]
[Site "Gujarat"]
[Date "2025.03.05"]
[Round "1.9"]
[White "Aamuktha Guntaka"]
[Black "Banker Reya"]
[Result "1-0"]
[Annotator "NA RC"]
[ECO "B66"]
[WhiteElo "1910"]
[BlackElo "1409"]
[PlyCount "111"]
[EventDate "2025.03.03"]
[EventCountry "IND"]
[SourceTitle "playchess.com"]
[Source "ChessBase"]
[SourceQuality "1"]
[TimeControl "5400+30"]

1. e4 {[%emt 0:00:08]} c5 {[%emt 0:00:08]} 2. Nf3 {[%emt 0:00:06]} d6 {[%emt 0:00:07]} 3. d4 {[%emt 0:00:05]} cxd4 {[%emt 0:00:09]} 4. Nxd4 {[%emt 0:00:08]} Nf6 {[%emt 0:00:06]} 5. Nc3 {[%emt 0:00:09]} Nc6 {[%emt 0:00:14]} 6. Bg5 {[%emt 0:00:32]} e6 {[%emt 0:00:18]} 7. Qd2 {[%emt 0:01:51]} a6 {[%emt 0:01:38]} 8. O-O-O {[%emt 0:02:09]} h6 {[%emt 0:05:00]} 9. Bf4 {[%emt 0:13:30]} d5 {[%emt 0:10:08]} 10. exd5 {[%emt 0:04:05]} Nxd5 {[%emt 0:00:50]} 11. Nxd5 {[%emt 0:03:44]} Qxd5 {[%emt 0:01:34]} 12. Nxc6 {[%emt 0:02:03]} Qxd2+ {[%emt 0:01:16]} 13. Rxd2 {[%emt 0:00:28]} bxc6 {[%emt 0:00:07]} 14. Be2 {[%emt 0:03:05]} Be7 {[%emt 0:01:44]} 15. Rhd1 {[%emt 0:02:31]} O-O {[%emt 0:03:14]} 16. Bf3 {[%emt 0:00:57]} e5 {[%emt 0:05:47]} 17. Be3 {[%emt 0:05:47]} Be6 {[%emt 0:04:03]} 18. Bxc6 {[%emt 0:01:38]} Rac8 {[%emt 0:00:50]} 19. Bd7 {[%emt 0:01:36]} Bb4 {[%emt 0:08:34]} 20. c3 {[%emt 0:01:45]} Bxd7 {[%emt 0:00:09]} 21. Rxd7 {[%emt 0:00:10]} Bc5 {[%emt 0:01:20]} 22. Bxc5 {[%emt 0:00:14]} Rxc5 {[%emt 0:00:11]} 23. R1d5 {[%emt 0:01:14]} Rxd5 {[%emt 0:01:08]} 24. Rxd5 {[%emt 0:00:01]} f6 {[%emt 0:00:12]} 25. Ra5 {[%emt 0:01:02]} Ra8 {[%emt 0:00:14]} 26. Kc2 {[%emt 0:00:04]} Kf7 {[%emt 0:00:07]} 27. b4 {[%emt 0:00:36]} Ke6 {[%emt 0:00:44]} 28. b5 {[%emt 0:01:14]} Kd6 {[%emt 0:00:18]} 29. Rxa6+ {[%emt 0:01:23]} Rxa6 {[%emt 0:00:18]} 30. bxa6 {[%emt 0:00:05]} Kc6 {[%emt 0:00:05]} 31. Kd3 {[%emt 0:01:22]} f5 {[%emt 0:00:34]} 32. Kc4 {[%emt 0:00:42]} g6 {[%emt 0:00:47]} 33. f3 {[%emt 0:01:41]} h5 {[%emt 0:00:31]} 34. h4 {[%emt 0:00:24]} Kb6 {[%emt 0:01:21]} 35. Kd5 {[%emt 0:00:09]} e4 {[%emt 0:01:08]} 36. fxe4 {[%emt 0:00:05]} fxe4 {[%emt 0:00:06]} 37. Kxe4 {[%emt 0:00:03]} Kxa6 {[%emt 0:00:45]} 38. Kf4 {[%emt 0:00:05]} Kb5 {[%emt 0:00:30]} 39. Kg5 {[%emt 0:00:01]} Kc4 {[%emt 0:00:09]} 40. a4 {[%emt 0:00:03]} Kc5 {[%emt 0:00:07]} 41. Kxg6 {[%emt 0:00:06]} Kc4 {[%emt 0:00:07]} 42. Kxh5 {[%emt 0:00:04]} Kc5 {[%emt 0:00:06]} 43. Kg6 {[%emt 0:00:03]} Kb6 {[%emt 0:00:06]} 44. h5 {[%emt 0:00:04]} Ka5 {[%emt 0:00:06]} 45. h6 {[%emt 0:00:04]} Kxa4 {[%emt 0:00:06]} 46. h7 {[%emt 0:00:03]} Kb3 {[%emt 0:00:28]} 47. h8=Q {[%emt 0:00:05]} Kc2 {[%emt 0:00:07]} 48. c4 {[%emt 0:00:03]} Kc1 {[%emt 0:00:12]} 49. Qc3+ {[%emt 0:00:04]} Kd1 {[%emt 0:00:13]} 50. Qb2 {[%emt 0:00:05]} Ke1 {[%emt 0:00:07]} 51. c5 {[%emt 0:00:02]} Kf1 {[%emt 0:00:12]} 52. g4 {[%emt 0:00:03]} Ke1 {[%emt 0:00:11]} 53. c6 {[%emt 0:00:03]} Kf1 {[%emt 0:00:10]} 54. c7 {[%emt 0:00:04]} Kg1 {[%emt 0:00:10]} 55. c8=R {[%emt 0:00:09]} Kh1 {[%emt 0:00:23]} 56. Rc1# {[%emt 0:00:04]} 1-0

[Event "22nd Indian Women chT 2025"]
[Site "Gujarat"]
[Date "2025.03.05"]
[Round "1.10"]
[White "Marvaniya Mahi V"]
[Black "Sandhya Goli"]
[Result "1/2-1/2"]
[Annotator "NA RC"]
[ECO "B33"]
[WhiteElo "1506"]
[BlackElo "1896"]
[PlyCount "106"]
[EventDate "2025.03.03"]
[EventCountry "IND"]
[SourceTitle "playchess.com"]
[Source "ChessBase"]
[SourceQuality "1"]
[TimeControl "5400+30"]

1. e4 {[%emt 0:00:02]} c5 {[%emt 0:00:04]} 2. Nf3 {[%emt 0:00:05]} d6 {[%emt 0:00:08]} 3. d4 {[%emt 0:00:09]} cxd4 {[%emt 0:00:04]} 4. Nxd4 {[%emt 0:00:05]} Nf6 {[%emt 0:00:06]} 5. Nc3 {[%emt 0:00:07]} Nc6 {[%emt 0:00:14]} 6. Be3 {[%emt 0:00:41]} e5 {[%emt 0:00:30]} 7. Ndb5 {[%emt 0:01:00]} a6 {[%emt 0:01:27]} 8. Na3 {[%emt 0:00:11]} Be6 {[%emt 0:03:44]} 9. Nc4 {[%emt 0:07:00]} b5 {[%emt 0:04:30]} 10. Nb6 {[%emt 0:03:01]} Rb8 {[%emt 0:00:15]} 11. Nbd5 {[%emt 0:05:32]} Bxd5 {[%emt 0:11:09]} 12. Nxd5 {[%emt 0:06:21]} Be7 {[%emt 0:12:55]} 13. Nxf6+ {[%emt 0:02:31]} Bxf6 {[%emt 0:00:58]} 14. Qd2 {[%emt 0:09:42]} Qc7 {[%emt 0:04:50]} 15. Bd3 {[%emt 0:07:09]} O-O {[%emt 0:04:24]} 16. O-O {[%emt 0:00:43]} Ne7 {[%emt 0:02:27]} 17. Rac1 {[%emt 0:14:46]} Rfd8 {[%emt 0:00:58]} 18. c4 {[%emt 0:03:05]} bxc4 {[%emt 0:05:29]} 19. Rxc4 {[%emt 0:06:37]} Qb7 {[%emt 0:00:57]} 20. Rc2 {[%emt 0:01:59]} d5 {[%emt 0:00:35]} 21. exd5 {[%emt 0:01:31]} Qxd5 {[%emt 0:02:25]} 22. Bxa6 {[%emt 0:01:52]} Qxa2 {[%emt 0:01:13]} 23. Qe2 {[%emt 0:00:05]} Nf5 {[%emt 0:08:31]} 24. Bc4 {[%emt 0:05:31]} Qa5 {[%emt 0:00:42]} 25. Bd2 {[%emt 0:01:29]} Qa7 {[%emt 0:02:23]} 26. Be3 {[%emt 0:02:27]} Qa5 {[%emt 0:01:52]} 27. Bd2 {[%emt 0:00:23]} Qa7 {[%emt 0:00:28]} 28. Be3 {[%emt 0:00:16]} Qb7 {[%emt 0:01:19]} 29. Ba6 {[%emt 0:02:14]} Qb4 {[%emt 0:01:32]} 30. Bc5 {[%emt 0:02:00]} Qa4 {[%emt 0:02:35]} 31. Bc4 {[%emt 0:03:37]} Nd4 {[%emt 0:01:31]} 32. Bxd4 {[%emt 0:00:26]} exd4 {[%emt 0:00:03]} 33. Bd3 {[%emt 0:00:57]} Qa5 {[%emt 0:03:51]} 34. Qe4 {[%emt 0:01:48]} g6 {[%emt 0:01:31]} 35. Rfc1 {[%emt 0:01:07]} Re8 {[%emt 0:00:21]} 36. Qf3 {[%emt 0:00:36]} Kg7 {[%emt 0:02:16]} 37. Kf1 {[%emt 0:00:37]} Rb6 {[%emt 0:02:02]} 38. Re2 {[%emt 0:01:21]} Reb8 {[%emt 0:01:33]} 39. Rb1 {[%emt 0:00:17]} Rb3 {[%emt 0:01:22]} 40. Qe4 {[%emt 0:00:27]} Qh5 {[%emt 0:03:42]} 41. h3 {[%emt 0:00:19]} Qg5 {[%emt 0:00:52]} 42. Kg1 {[%emt 0:01:05]} Rc8 {[%emt 0:00:49]} 43. Ree1 {[%emt 0:00:42]} Qd2 {[%emt 0:00:30]} 44. Red1 {[%emt 0:00:55]} Qg5 {[%emt 0:01:19]} 45. Re1 {[%emt 0:00:38]} Qd2 {[%emt 0:00:52]} 46. Red1 {[%emt 0:00:41]} Qa5 {[%emt 0:00:03]} 47. Bc2 {[%emt 0:00:23]} Rb4 {[%emt 0:00:16]} 48. Bd3 {[%emt 0:00:12]} Rcb8 {[%emt 0:00:25]} 49. Qe2 {[%emt 0:00:41]} Bg5 {[%emt 0:01:07]} 50. Bc4 {[%emt 0:02:03]} Bf6 {[%emt 0:01:33]} 51. b3 {[%emt 0:00:28]} Qc7 {[%emt 0:00:51]} 52. Rbc1 {[%emt 0:00:45]} Qf4 {[%emt 0:00:53]} 53. Rb1 {[%emt 0:00:40]} Qc7 {[%emt 0:01:08]} 1/2-1/2

[Event "22nd Indian Women chT 2025"]
[Site "Gujarat"]
[Date "2025.03.05"]
[Round "1.11"]
[White "Niharika Challa"]
[Black "Kamakshee Joshi"]
[Result "1-0"]
[Annotator "NA RC"]
[ECO "B98"]
[WhiteElo "2072"]
[BlackElo "1560"]
[PlyCount "93"]
[EventDate "2025.03.03"]
[EventCountry "IND"]
[SourceTitle "playchess.com"]
[Source "ChessBase"]
[SourceQuality "1"]
[TimeControl "5400+30"]

1. e4 {[%emt 0:00:16]} c5 {[%emt 0:00:06]} 2. Nf3 {[%emt 0:00:07]} d6 {[%emt 0:00:08]} 3. d4 {[%emt 0:00:11]} cxd4 {[%emt 0:00:12]} 4. Nxd4 {[%emt 0:00:07]} Nf6 {[%emt 0:00:22]} 5. Nc3 {[%emt 0:00:06]} a6 {[%emt 0:00:03]} 6. Bg5 {[%emt 0:00:24]} e6 {[%emt 0:00:25]} 7. f4 {[%emt 0:00:05]} Be7 {[%emt 0:00:27]} 8. Qf3 {[%emt 0:00:05]} Qc7 {[%emt 0:00:58]} 9. O-O-O {[%emt 0:00:51]} Nc6 {[%emt 0:00:28]} 10. Kb1 {[%emt 0:05:58]} e5 {[%emt 0:10:50]} 11. Bxf6 {[%emt 0:04:27]} Nxd4 {[%emt 0:01:43]} 12. Rxd4 {[%emt 0:01:31]} exd4 {[%emt 0:02:50]} 13. Nd5 {[%emt 0:00:49]} Qa5 {[%emt 0:07:36]} 14. b4 {[%emt 0:00:12]} Qa4 {[%emt 0:00:53]} 15. Bxe7 {[%emt 0:02:31]} Be6 {[%emt 0:07:54]} 16. Bxd6 {[%emt 0:00:32]} Bxd5 {[%emt 0:01:44]} 17. exd5 {[%emt 0:00:11]} Kd7 {[%emt 0:00:40]} 18. Bc5 {[%emt 0:03:02]} b6 {[%emt 0:05:09]} 19. Bxd4 {[%emt 0:04:33]} Qxb4+ {[%emt 0:00:37]} 20. Bb2 {[%emt 0:00:06]} Rhe8 {[%emt 0:06:30]} 21. a3 {[%emt 0:02:26]} Re1+ {[%emt 0:03:47]} 22. Ka2 {[%emt 0:00:16]} Qd2 {[%emt 0:01:15]} 23. Qh3+ {[%emt 0:08:44]} Ke8 {[%emt 0:02:20]} 24. Qc3 {[%emt 0:03:59]} Qxc3 {[%emt 0:17:27]} 25. Bxc3 {[%emt 0:00:02]} Re4 {[%emt 0:01:02]} 26. g3 {[%emt 0:01:00]} Rc8 {[%emt 0:00:40]} 27. Bd3 {[%emt 0:00:35]} Re3 {[%emt 0:01:54]} 28. Bxg7 {[%emt 0:00:30]} Rd8 {[%emt 0:01:05]} 29. Bd4 {[%emt 0:00:16]} Rxd3 {[%emt 0:01:03]} 30. cxd3 {[%emt 0:00:10]} Rxd5 {[%emt 0:00:19]} 31. Bxb6 {[%emt 0:00:15]} Rxd3 {[%emt 0:00:09]} 32. Re1+ {[%emt 0:00:11]} Kf8 {[%emt 0:00:29]} 33. Re2 {[%emt 0:00:08]} Rd5 {[%emt 0:00:26]} 34. a4 {[%emt 0:00:09]} Kg7 {[%emt 0:00:26]} 35. a5 {[%emt 0:00:08]} Kg6 {[%emt 0:00:11]} 36. Kb3 {[%emt 0:00:18]} Kh5 {[%emt 0:00:12]} 37. Re5+ {[%emt 0:00:13]} Rxe5 {[%emt 0:00:16]} 38. fxe5 {[%emt 0:00:02]} Kg5 {[%emt 0:00:06]} 39. Kc4 {[%emt 0:00:07]} Kf5 {[%emt 0:00:05]} 40. Bc7 {[%emt 0:00:21]} h5 {[%emt 0:00:07]} 41. Kc5 {[%emt 0:00:16]} Ke6 {[%emt 0:00:07]} 42. Kb6 {[%emt 0:00:06]} Kd7 {[%emt 0:00:06]} 43. h3 {[%emt 0:00:21]} Kc8 {[%emt 0:00:08]} 44. Bd6 {[%emt 0:00:12]} Kd7 {[%emt 0:00:08]} 45. Kxa6 {[%emt 0:00:10]} Kc6 {[%emt 0:00:11]} 46. Ka7 {[%emt 0:00:03]} Kd5 {[%emt 0:00:11]} 47. Kb7 {[%emt 0:00:05]} 1-0

[Event "22nd Indian Women chT 2025"]
[Site "Gujarat"]
[Date "2025.03.05"]
[Round "1.12"]
[White "Margi Hitesh Chudasama"]
[Black "Kotepalli, Sai Nirupama"]
[Result "1-0"]
[Annotator "NA RC"]
[ECO "D05"]
[WhiteElo "1523"]
[BlackElo "1934"]
[PlyCount "54"]
[EventDate "2025.03.03"]
[EventCountry "IND"]
[SourceTitle "playchess.com"]
[Source "ChessBase"]
[SourceQuality "1"]
[TimeControl "5400+30"]

1. d4 {[%emt 0:01:14]} Nf6 {[%emt 0:00:46]} 2. Nf3 {[%emt 0:00:05]} e6 {[%emt 0:00:26]} 3. e3 {[%emt 0:00:04]} d5 {[%emt 0:00:42]} 4. a3 {[%emt 0:00:07]} Bd6 {[%emt 0:01:19]} 5. Bd3 {[%emt 0:00:04]} c5 {[%emt 0:02:58]} 6. b3 {[%emt 0:00:05]} Nc6 {[%emt 0:02:43]} 7. Bb2 {[%emt 0:00:13]} O-O {[%emt 0:01:09]} 8. O-O {[%emt 0:00:19]} cxd4 {[%emt 0:02:29]} 9. exd4 {[%emt 0:00:21]} Ne4 {[%emt 0:02:25]} 10. Nbd2 {[%emt 0:00:55]} f5 {[%emt 0:00:06]} 11. Ne5 {[%emt 0:00:13]} Bxe5 {[%emt 0:04:19]} 12. dxe5 {[%emt 0:00:10]} Qc7 {[%emt 0:00:30]} 13. f4 {[%emt 0:02:03]} Qb6+ {[%emt 0:00:10]} 14. Kh1 {[%emt 0:01:21]} Nf2+ {[%emt 0:00:06]} 15. Rxf2 {[%emt 0:00:04]} Qxf2 {[%emt 0:00:02]} 16. Nf3 {[%emt 0:00:11]} Bd7 {[%emt 0:02:52]} 17. b4 {[%emt 0:03:04]} Qb6 {[%emt 0:01:50]} 18. c4 {[%emt 0:01:47]} Ne7 {[%emt 0:11:40]} 19. Bd4 {[%emt 0:00:44]} Qd8 {[%emt 0:00:03]} 20. Bc5 {[%emt 0:00:47]} b6 {[%emt 0:20:27]} 21. Bd6 {[%emt 0:00:47]} Re8 {[%emt 0:00:42]} 22. Rc1 {[%emt 0:01:12]} Rc8 {[%emt 0:10:38]} 23. h3 {[%emt 0:02:49]} Ng6 {[%emt 0:10:37]} 24. g3 {[%emt 0:01:42]} dxc4 {[%emt 0:01:37]} 25. Bxc4 {[%emt 0:02:48]} Bc6 {[%emt 0:01:03]} 26. Kg1 {[%emt 0:01:44]} Bxf3 {[%emt 0:00:16]} 27. Qxf3 {[%emt 0:05:04]} b5 {[%emt 0:00:03]} 1-0

[Event "22nd Indian Women chT 2025"]
[Site "Gujarat"]
[Date "2025.03.05"]
[Round "1.14"]
[White "Pragnya H G"]
[Black "Balani Manya"]
[Result "1-0"]
[Annotator "NA RC"]
[ECO "C42"]
[WhiteElo "1998"]
[BlackElo "1486"]
[PlyCount "53"]
[EventDate "2025.03.03"]
[EventCountry "IND"]
[SourceTitle "playchess.com"]
[Source "ChessBase"]
[SourceQuality "1"]
[TimeControl "5400+30"]

1. e4 {[%emt 0:04:17]} e5 {[%emt 0:00:17]} 2. Nf3 {[%emt 0:00:25]} Nf6 {[%emt 0:01:12]} 3. Nxe5 {[%emt 0:00:19]} d6 {[%emt 0:00:09]} 4. Nf3 {[%emt 0:00:10]} Nxe4 {[%emt 0:00:07]} 5. Nc3 {[%emt 0:03:17]} Nxc3 {[%emt 0:00:17]} 6. dxc3 {[%emt 0:00:02]} Be7 {[%emt 0:00:26]} 7. Bf4 {[%emt 0:03:13]} Nd7 {[%emt 0:00:16]} 8. Qd2 {[%emt 0:05:53]} O-O {[%emt 0:03:35]} 9. O-O-O {[%emt 0:04:25]} Nc5 {[%emt 0:01:56]} 10. Bd3 {[%emt 0:09:57]} Nxd3+ {[%emt 0:02:00]} 11. Qxd3 {[%emt 0:00:20]} Rb8 {[%emt 0:05:13]} 12. h4 {[%emt 0:02:41]} Bg4 {[%emt 0:08:34]} 13. Ng5 {[%emt 0:09:52]} Bxg5 {[%emt 0:01:11]} 14. hxg5 {[%emt 0:00:32]} g6 {[%emt 0:02:50]} 15. f3 {[%emt 0:03:33]} Bf5 {[%emt 0:00:26]} 16. Qd4 {[%emt 0:00:27]} f6 {[%emt 0:07:38]} 17. Qd5+ {[%emt 0:03:03]} Kh8 {[%emt 0:06:46]} 18. gxf6 {[%emt 0:00:50]} Qd7 {[%emt 0:07:27]} 19. Bh6 {[%emt 0:02:37]} Be6 {[%emt 0:14:33]} 20. Bg7+ {[%emt 0:01:01]} Kg8 {[%emt 0:00:33]} 21. Qg5 {[%emt 0:01:11]} Rf7 {[%emt 0:09:44]} 22. Rxh7 {[%emt 0:01:22]} Rxg7 {[%emt 0:00:57]} 23. Rxg7+ {[%emt 0:00:09]} Qxg7 {[%emt 0:00:30]} 24. fxg7 {[%emt 0:00:10]} Kxg7 {[%emt 0:00:17]} 25. Qe7+ {[%emt 0:00:14]} Bf7 {[%emt 0:00:05]} 26. Rd4 {[%emt 0:00:12]} Re8 {[%emt 0:00:15]} 27. Qxc7 {[%emt 0:00:13]} 1-0

[Event "22nd Indian Women chT 2025"]
[Site "Gujarat"]
[Date "2025.03.05"]
[Round "1.15"]
[White "Silvii Ranawat"]
[Black "Shanmathi Sree S"]
[Result "1-0"]
[Annotator "NA RC"]
[ECO "D00"]
[WhiteElo "1608"]
[BlackElo "1888"]
[PlyCount "109"]
[EventDate "2025.03.03"]
[EventCountry "IND"]
[SourceTitle "playchess.com"]
[Source "ChessBase"]
[SourceQuality "1"]
[TimeControl "5400+30"]

1. d4 {[%emt 0:00:09]} d5 {[%emt 0:00:32]} 2. Bf4 {[%emt 0:00:10]} e6 {[%emt 0:00:29]} 3. e3 {[%emt 0:00:13]} Nf6 {[%emt 0:00:13]} 4. c3 {[%emt 0:00:20]} Bd6 {[%emt 0:02:06]} 5. Bd3 {[%emt 0:01:13]} Bxf4 {[%emt 0:02:47]} 6. exf4 {[%emt 0:00:09]} O-O {[%emt 0:01:34]} 7. Nf3 {[%emt 0:01:01]} c5 {[%emt 0:01:58]} 8. Nbd2 {[%emt 0:01:58]} cxd4 {[%emt 0:01:56]} 9. Nxd4 {[%emt 0:01:09]} Qc7 {[%emt 0:10:01]} 10. g3 {[%emt 0:03:38]} e5 {[%emt 0:13:23]} 11. Nb5 {[%emt 0:02:56]} Qb6 {[%emt 0:00:28]} 12. fxe5 {[%emt 0:03:55]} Ne4 {[%emt 0:07:53]} 13. Qe2 {[%emt 0:07:06]} a6 {[%emt 0:10:59]} 14. Nxe4 {[%emt 0:06:25]} dxe4 {[%emt 0:10:41]} 15. Qxe4 {[%emt 0:01:02]} g6 {[%emt 0:05:49]} 16. Nd6 {[%emt 0:03:01]} Bh3 {[%emt 0:05:42]} 17. Nc4 {[%emt 0:11:12]} Qc7 {[%emt 0:02:21]} 18. O-O-O {[%emt 0:05:26]} Be6 {[%emt 0:01:13]} 19. a3 {[%emt 0:03:14]} Nd7 {[%emt 0:02:11]} 20. Nd6 {[%emt 0:01:55]} b5 {[%emt 0:02:47]} 21. f4 {[%emt 0:02:21]} b4 {[%emt 0:04:50]} 22. axb4 {[%emt 0:04:10]} a5 {[%emt 0:01:12]} 23. b5 {[%emt 0:02:48]} a4 {[%emt 0:00:42]} 24. Qb4 {[%emt 0:02:55]} a3 {[%emt 0:01:47]} 25. bxa3 {[%emt 0:00:30]} Nb6 {[%emt 0:01:57]} 26. Bc2 {[%emt 0:09:40]} Nd5 {[%emt 0:02:14]} 27. Rxd5 {[%emt 0:02:58]} Bxd5 {[%emt 0:00:05]} 28. Rd1 {[%emt 0:00:17]} Bf3 {[%emt 0:03:39]} 29. Rf1 {[%emt 0:00:43]} Bg2 {[%emt 0:00:53]} 30. Rf2 {[%emt 0:00:43]} Bh1 {[%emt 0:01:32]} 31. c4 {[%emt 0:01:51]} Qa7 {[%emt 0:01:03]} 32. c5 {[%emt 0:03:35]} Qxa3+ {[%emt 0:00:52]} 33. Qxa3 {[%emt 0:00:05]} Rxa3 {[%emt 0:00:04]} 34. Kb2 {[%emt 0:01:20]} Rfa8 {[%emt 0:01:05]} 35. Bb3 {[%emt 0:00:23]} R3a5 {[%emt 0:00:26]} 36. c6 {[%emt 0:01:03]} Kf8 {[%emt 0:00:33]} 37. c7 {[%emt 0:00:19]} R5a7 {[%emt 0:00:27]} 38. b6 {[%emt 0:00:21]} Rb7 {[%emt 0:00:05]} 39. c8=Q+ {[%emt 0:00:38]} Rxc8 {[%emt 0:00:04]} 40. Nxc8 {[%emt 0:00:08]} Bc6 {[%emt 0:00:20]} 41. Rc2 {[%emt 0:00:25]} Bd7 {[%emt 0:00:06]} 42. Bd5 {[%emt 0:00:48]} Rb8 {[%emt 0:00:40]} 43. b7 {[%emt 0:00:07]} Be6 {[%emt 0:00:07]} 44. Bxe6 {[%emt 0:00:19]} Rxb7+ {[%emt 0:00:03]} 45. Bb3 {[%emt 0:00:08]} Kg7 {[%emt 0:00:05]} 46. Nd6 {[%emt 0:00:13]} Ra7 {[%emt 0:00:05]} 47. Bxf7 {[%emt 0:00:24]} h5 {[%emt 0:00:26]} 48. Rc3 {[%emt 0:01:30]} h4 {[%emt 0:00:13]} 49. g4 {[%emt 0:00:08]} Kh6 {[%emt 0:00:10]} 50. Rc8 {[%emt 0:00:09]} g5 {[%emt 0:00:37]} 51. f5 {[%emt 0:00:52]} h3 {[%emt 0:00:19]} 52. f6 {[%emt 0:00:16]} Kh7 {[%emt 0:00:23]} 53. Be6 {[%emt 0:02:05]} Kh6 {[%emt 0:01:01]} 54. Rh8+ {[%emt 0:00:44]} Rh7 {[%emt 0:00:06]} 55. Bf5 {[%emt 0:00:49]} 1-0

[Event "22nd Indian Women chT 2025"]
[Site "Gujarat"]
[Date "2025.03.05"]
[Round "1.16"]
[White "Rajasurya, J.."]
[Black "Vini Gandhi"]
[Result "1-0"]
[Annotator "NA RC"]
[ECO "A10"]
[WhiteElo "1729"]
[BlackElo "1464"]
[PlyCount "91"]
[EventDate "2025.03.03"]
[EventCountry "IND"]
[SourceTitle "playchess.com"]
[Source "ChessBase"]
[SourceQuality "1"]
[TimeControl "5400+30"]

1. c4 {[%emt 0:00:07]} f5 {[%emt 0:01:29]} 2. Nc3 {[%emt 0:00:07]} e6 {[%emt 0:00:30]} 3. g3 {[%emt 0:00:08]} Nf6 {[%emt 0:00:27]} 4. Bg2 {[%emt 0:00:06]} Bb4 {[%emt 0:00:10]} 5. d3 {[%emt 0:00:45]} Bxc3+ {[%emt 0:00:13]} 6. bxc3 {[%emt 0:00:04]} Nc6 {[%emt 0:01:46]} 7. Nf3 {[%emt 0:00:51]} O-O {[%emt 0:00:18]} 8. O-O {[%emt 0:00:13]} e5 {[%emt 0:08:10]} 9. Rb1 {[%emt 0:11:38]} e4 {[%emt 0:10:52]} 10. Nd4 {[%emt 0:02:10]} Ne7 {[%emt 0:17:04]} 11. Qc2 {[%emt 0:23:04]} d5 {[%emt 0:10:37]} 12. Rd1 {[%emt 0:00:23]} c6 {[%emt 0:09:08]} 13. cxd5 {[%emt 0:15:37]} cxd5 {[%emt 0:01:11]} 14. Ba3 {[%emt 0:02:53]} a6 {[%emt 0:06:12]} 15. Bh3 {[%emt 0:19:45]} Nh5 {[%emt 0:17:53]} 16. dxe4 {[%emt 0:01:27]} fxe4 {[%emt 0:00:39]} 17. Bxc8 {[%emt 0:01:59]} Rxc8 {[%emt 0:02:34]} 18. Ne6 {[%emt 0:00:21]} Qe8 {[%emt 0:00:57]} 19. Nxf8 {[%emt 0:00:34]} Qxf8 {[%emt 0:00:15]} 20. Rxd5 {[%emt 0:02:21]} Nf6 {[%emt 0:03:44]} 21. Rf5 {[%emt 0:04:28]} Qe8 {[%emt 0:00:31]} 22. Qb3+ {[%emt 0:01:36]} Kh8 {[%emt 0:00:19]} 23. Re5 {[%emt 0:00:58]} Rc7 {[%emt 0:00:45]} 24. Bxe7 {[%emt 0:02:22]} Rxe7 {[%emt 0:00:18]} 25. Rxe7 {[%emt 0:00:04]} Qxe7 {[%emt 0:00:06]} 26. Qxb7 {[%emt 0:00:04]} Qe5 {[%emt 0:00:35]} 27. Qb8+ {[%emt 0:00:14]} Qxb8 {[%emt 0:00:20]} 28. Rxb8+ {[%emt 0:00:07]} Ng8 {[%emt 0:00:03]} 29. c4 {[%emt 0:00:11]} h6 {[%emt 0:00:17]} 30. c5 {[%emt 0:00:07]} Kh7 {[%emt 0:00:06]} 31. Rxg8 {[%emt 0:00:17]} Kxg8 {[%emt 0:00:14]} 32. c6 {[%emt 0:00:03]} Kh7 {[%emt 0:00:08]} 33. c7 {[%emt 0:00:26]} a5 {[%emt 0:00:12]} 34. c8=Q {[%emt 0:00:33]} a4 {[%emt 0:00:02]} 35. Qf5+ {[%emt 0:00:30]} Kh8 {[%emt 0:00:09]} 36. Qxe4 {[%emt 0:00:27]} a3 {[%emt 0:00:05]} 37. Qg6 {[%emt 0:00:27]} Kg8 {[%emt 0:00:12]} 38. e4 {[%emt 0:00:03]} Kf8 {[%emt 0:00:04]} 39. e5 {[%emt 0:00:06]} Ke7 {[%emt 0:00:10]} 40. e6 {[%emt 0:00:11]} Kd6 {[%emt 0:00:08]} 41. Qf7 {[%emt 0:00:08]} g5 {[%emt 0:00:09]} 42. e7 {[%emt 0:00:09]} Kc6 {[%emt 0:00:04]} 43. e8=Q+ {[%emt 0:00:09]} Kc5 {[%emt 0:00:07]} 44. Qe4 {[%emt 0:00:44]} g4 {[%emt 0:00:44]} 45. Qc7+ {[%emt 0:00:12]} Kb5 {[%emt 0:00:07]} 46. Qec4# {[%emt 0:00:52]} 1-0